bitfinex/quotes_BTCUSD_20251212
["timestamp","ask_amount","ask_price","bid_price","bid_amount"]
[1765515841947,0.08322839,92472.0,92471.0,0.00292952]
[1765515842266,0.08959839,92472.0,92471.0,0.00292952]
[1765515843314,0.08322839,92472.0,92471.0,0.00292952]
[1765515843503,0.06497176,92472.0,92471.0,0.00292952]
[1765515845146,0.05860176,92472.0,92471.0,0.00292952]
[1765515845347,0.08563697,92472.0,92471.0,0.00292952]
[1765515845513,0.05860176,92472.0,92471.0,0.00292952]
[1765515847348,0.05860176,92472.0,92471.0,0.03196104]
[1765515850403,0.06497176,92472.0,92471.0,0.03196104]
[1765515850707,0.09200697,92472.0,92471.0,0.03196104]
[1765515851264,0.08563697,92472.0,92471.0,0.03196104]
[1765515851480,0.05860176,92472.0,92471.0,0.03196104]
[1765515854424,0.4260634,92905.0,92471.0,0.03196104]
[1765515854425,0.01081326,92479.0,92471.0,0.03196104]
[1765515854626,0.00637,92488.0,92483.0,0.21625596]
[1765515854823,0.01708,92486.0,92483.0,0.22706875]
[1765515855033,0.01708,92486.0,92484.0,0.05065687]
[1765515855379,0.01708,92486.0,92484.0,0.02162817]
[1765515856156,0.00637,92485.0,92484.0,0.02162817]
[1765515872200,0.00637,92485.0,92484.0,0.23788179]
[1765515872376,0.00637,92485.0,92484.0,0.02162817]
[1765515885066,0.05096451,92485.0,92484.0,0.02162817]
[1765515885273,0.05733451,92485.0,92484.0,0.02162817]
[1765515885546,0.05096451,92485.0,92484.0,0.02162817]
[1765515885750,0.00637,92485.0,92484.0,0.02162817]
[1765515886566,0.03340141,92485.0,92484.0,0.02162817]
[1765515888413,0.00637,92485.0,92484.0,0.02162817]
[1765515890833,0.00637,92485.0,92484.0,0.23788179]
[1765515891461,0.00637,92485.0,92484.0,0.02162817]
[1765515896422,0.01718209,92488.0,92485.0,0.22706384]
[1765515896659,0.01718209,92488.0,92485.0,0.25608687]
[1765515897753,0.004,92488.0,92487.0,0.2328466]
[1765515897927,0.004,92488.0,92487.0,0.23445946]
[1765515898168,0.004,92488.0,92487.0,0.25771946]
[1765515898375,0.004,92488.0,92487.0,0.24629909]
[1765515898521,0.007,92488.0,92487.0,0.24629909]
[1765515898734,0.04327327,92502.0,92499.0,0.01081092]
[1765515899154,0.01718022,92505.0,92499.0,0.01081092]
[1765515899155,0.00637,92514.0,92502.0,0.22702211]
[1765515899529,0.02080994,92515.0,92501.0,0.02162817]
[1765515899530,0.03245757,92515.0,92510.0,0.21619151]
[1765515899730,0.01080917,92514.0,92510.0,0.21509756]
[1765515899860,0.01080917,92514.0,92511.0,0.01080952]
[1765515900062,0.03470917,92514.0,92511.0,0.01080952]
[1765515900325,0.2269837,92518.0,92511.0,0.01080952]
[1765515900326,0.010808,92524.0,92516.0,0.01080894]
[1765515900534,0.00011654,92519.0,92518.0,0.21617414]
[1765515900940,0.02742654,92519.0,92516.0,0.01080894]
[1765515901111,0.02742654,92519.0,92503.0,0.01708]
[1765515901112,0.0108094,92512.0,92509.0,0.01080975]
[1765515901371,0.01081034,92504.0,92501.0,0.03866986]
[1765515901570,0.02731,92510.0,92488.0,0.25491265]
[1765515901571,0.01081092,92499.0,92488.0,0.25491265]
[1765515901737,0.01081092,92499.0,92487.0,0.01708]
[1765515901738,0.01081116,92497.0,92492.0,0.01081174]
[1765515902131,0.06303761,92498.0,92495.0,0.01081139]
[1765515902356,0.04682104,92498.0,92493.0,0.01081162]
[1765515902586,0.04682104,92498.0,92495.0,0.22703929]
[1765515902587,0.06303761,92498.0,92495.0,0.22703929]
[1765515902992,0.06303761,92498.0,92495.0,0.01081139]
[1765515903197,0.03601,92498.0,92495.0,0.01081139]
[1765515903406,0.03913702,92500.0,92498.0,0.21622089]
[1765515903612,0.03913702,92500.0,92499.0,0.02702338]
[1765515903817,0.07595416,92500.0,92499.0,0.02702338]
[1765515904226,0.08802714,92500.0,92499.0,0.02702338]
[1765515904633,0.11505416,92500.0,92499.0,0.02702338]
[1765515905437,0.11505416,92500.0,92499.0,0.02902338]
[1765515905638,0.08802714,92500.0,92499.0,0.02902338]
[1765515905861,0.08802714,92500.0,92499.0,0.03002338]
[1765515906063,0.08802714,92500.0,92499.0,0.24624193]
[1765515906237,0.05121,92500.0,92499.0,0.24624193]
[1765515907183,0.05121,92500.0,92499.0,0.03002338]
[1765515909453,0.06282376,92500.0,92499.0,0.003]
[1765515910241,0.09528691,92500.0,92499.0,0.003]
[1765515910473,0.17692127,92500.0,92499.0,0.003]
[1765515910673,0.20394829,92500.0,92499.0,0.003]
[1765515911894,0.17692127,92500.0,92499.0,0.003]
[1765515912106,0.16692038,92500.0,92499.0,0.003]
[1765515913048,0.08528602,92500.0,92499.0,0.003]
[1765515913253,0.01211,92508.0,92504.0,0.01081034]
[1765515913477,0.01211,92508.0,92504.0,0.03783372]
[1765515913478,0.03601,92508.0,92504.0,0.03783372]
[1765515913672,0.03245897,92506.0,92504.0,0.03783372]
[1765515913903,0.04681987,92508.0,92504.0,0.02702338]
[1765515913904,0.03470999,92507.0,92504.0,0.02702338]
[1765515914108,0.0152,92505.0,92504.0,0.02702338]
[1765515914497,0.0391,92505.0,92504.0,0.02802338]
[1765515915034,0.0391,92505.0,92504.0,0.02702338]
[1765515915177,0.0391,92505.0,92504.0,0.02802338]
[1765515916678,0.0152,92505.0,92504.0,0.02802338]
[1765515917001,0.29765858,92510.0,92504.0,0.02802338]
[1765515917002,0.01080847,92520.0,92516.0,0.01080894]
[1765515917200,0.03733654,92519.0,92518.0,0.02702338]
[1765515917626,0.05347654,92519.0,92518.0,0.02702338]
[1765515919672,0.02871654,92519.0,92518.0,0.02702338]
[1765515920255,0.05347654,92519.0,92518.0,0.02702338]
[1765515926938,0.01257654,92519.0,92518.0,0.02702338]
[1765515927148,0.00011654,92519.0,92518.0,0.02702338]
[1765515932016,0.00011654,92519.0,92518.0,0.24319752]
[1765515937309,0.05347654,92519.0,92516.0,0.01080894]
[1765515937512,0.05347654,92519.0,92518.0,0.21617414]
[1765515937750,0.09317139,92519.0,92518.0,0.21617414]
[1765515938311,0.06841139,92519.0,92518.0,0.21617414]
[1765515940771,0.09317139,92519.0,92516.0,0.01080894]
[1765515940972,0.02476,92518.0,92516.0,0.01080894]
[1765515941131,0.0519371,92517.0,92516.0,0.22698714]
[1765515941346,0.0680771,92517.0,92516.0,0.22698714]
[1765515941542,0.0519371,92517.0,92516.0,0.22698714]
[1765515941742,0.01257654,92519.0,92516.0,0.22698714]
[1765515941979,0.01614,92517.0,92514.0,0.2269905]
[1765515942217,0.01614,92517.0,92516.0,0.001]
[1765515942415,0.03189164,92517.0,92516.0,0.001]
[1765515942788,0.03189164,92517.0,92514.0,0.2269905]
[1765515943000,0.03189164,92517.0,92516.0,0.001]
[1765515943467,0.03189164,92517.0,92514.0,0.2269905]
[1765515943610,0.03189164,92517.0,92516.0,0.21617882]
[1765515944606,0.03189164,92517.0,92516.0,0.21717882]
[1765515945007,0.03189164,92517.0,92516.0,0.001]
[1765515945324,0.05665164,92517.0,92516.0,0.21717882]
[1765515945893,0.05665164,92517.0,92516.0,0.001]
[1765515946634,0.05665164,92517.0,92516.0,0.21717882]
[1765515947396,0.27444099,92517.0,92516.0,0.001]
[1765515947599,0.28444188,92517.0,92516.0,0.001]
[1765515948223,0.22700172,92511.0,92508.0,0.03866986]
[1765515948430,0.07392472,92510.0,92508.0,0.03866986]
[1765515948654,0.07392472,92510.0,92507.0,0.26567949]
[1765515948867,0.07392472,92510.0,92508.0,0.4]
[1765515949082,0.07392472,92510.0,92507.0,0.26567949]
[1765515949595,0.07392472,92510.0,92508.0,0.001]
[1765515949790,0.03357998,92509.0,92508.0,0.001]
[1765515950930,0.03357998,92509.0,92507.0,0.26767949]
[1765515951548,0.03357998,92509.0,92507.0,0.26567949]
[1765515951768,0.03357998,92509.0,92508.0,0.001]
[1765515952712,0.08354802,92516.0,92512.0,0.0108094]
[1765515952933,0.02251905,92515.0,92512.0,0.0108094]
[1765515953061,0.02407,92514.0,92512.0,0.0108094]
[1765515953283,0.02407,92514.0,92510.0,0.03862479]
[1765515953284,0.01653,92513.0,92510.0,0.03862479]
[1765515953485,0.01653,92513.0,92510.0,0.04943443]
[1765515953714,0.06594163,92512.0,92510.0,0.04943443]
[1765515954961,0.06594163,92512.0,92510.0,0.05043443]
[1765515955160,0.01171,92511.0,92510.0,0.05043443]
[1765515955392,0.05231,92511.0,92510.0,0.05043443]
[1765515955566,0.05231,92511.0,92510.0,0.05143443]
[1765515955876,0.12260278,92511.0,92510.0,0.05043443]
[1765515956105,0.12260278,92511.0,92510.0,0.05143443]
[1765515956405,0.12260278,92511.0,92510.0,0.05043443]
[1765515956847,0.12260278,92511.0,92510.0,0.05143443]
[1765515957363,0.12260278,92511.0,92510.0,0.04062479]
[1765515957598,0.12260278,92511.0,92510.0,0.03962479]
[1765515958029,0.12260278,92511.0,92510.0,0.04062479]
[1765515958208,0.12260278,92511.0,92510.0,0.25681763]
[1765515958586,0.05231,92511.0,92510.0,0.25681763]
[1765515959184,0.05231,92511.0,92510.0,0.04062479]
[1765515959388,0.05231,92511.0,92510.0,0.25681763]
[1765515959708,0.05231,92511.0,92510.0,0.04062479]
[1765515960515,0.07933381,92511.0,92510.0,0.002]
[1765515960712,0.16043421,92511.0,92510.0,0.002]
[1765515961116,0.02824,92511.0,92510.0,0.002]
[1765515961293,0.02702293,92514.0,92512.0,0.0108094]
[1765515961525,0.03904929,92513.0,92510.0,0.04062479]
[1765515961691,0.01653,92511.0,92510.0,0.04062479]
[1765515962263,0.0406,92511.0,92510.0,0.04062479]
[1765515962932,0.00161287,92517.0,92514.0,0.01080917]
[1765515963146,0.00161287,92517.0,92515.0,0.243204]
[1765515963764,0.00161287,92517.0,92516.0,0.03862479]
[1765515964163,0.00161287,92517.0,92515.0,0.28182879]
[1765515965264,0.00011654,92519.0,92518.0,0.21617414]
[1765515969275,0.02996941,92519.0,92518.0,0.21617414]
[1765515969438,0.05403941,92519.0,92518.0,0.21617414]
[1765515970665,0.22698284,92518.0,92517.0,0.0289631]
[1765515970999,0.25105284,92518.0,92516.0,0.05598648]
[1765515971163,0.0406,92517.0,92516.0,0.05598648]
[1765515971980,0.0406,92517.0,92516.0,0.0289631]
[1765515973762,0.0406,92517.0,92516.0,0.0299631]
[1765515980075,0.0406,92517.0,92516.0,0.001]
[1765515984347,0.024248,92519.0,92516.0,0.001]
[1765515984552,0.21617414,92518.0,92517.0,0.02897178]
[1765515984743,0.24029414,92518.0,92517.0,0.02897178]
[1765515984901,0.25564414,92518.0,92517.0,0.02897178]
[1765515985065,0.31491466,92518.0,92516.0,0.02997178]
[1765515985263,0.08406451,92517.0,92516.0,0.001]
[1765515986107,0.04459451,92515.0,92514.0,0.02897178]
[1765515986332,0.07153451,92515.0,92514.0,0.02897178]
[1765515986676,0.07153451,92515.0,92506.0,0.0108101]
[1765515986677,0.21620452,92505.0,92503.0,0.02897178]
[1765515986849,0.21620452,92505.0,92501.0,0.02897178]
[1765515986850,0.21621154,92502.0,92501.0,0.02897178]
[1765515987257,0.25568154,92502.0,92500.0,0.02897178]
[1765515987473,0.25568154,92502.0,92490.0,0.01081197]
[1765515987474,0.04459451,92493.0,92492.0,0.02897178]
[1765515987628,0.04459451,92493.0,92481.0,0.0579441]
[1765515987629,0.04459451,92492.0,92491.0,0.02897178]
[1765515987827,0.04459451,92492.0,92471.0,0.07715164]
[1765515987828,0.04459451,92489.0,92488.0,0.02897178]
[1765515988028,0.04459451,92485.0,92484.0,0.03862479]
[1765515988240,0.2608528,92482.0,92481.0,0.03862479]
[1765515988708,0.04459451,92481.0,92480.0,0.03862479]
[1765515988933,0.14494186,92481.0,92480.0,0.03870473]
[1765515989154,0.16029186,92481.0,92480.0,0.03870473]
[1765515989313,0.16029186,92481.0,92480.0,7.994e-05]
[1765515989744,0.16029186,92481.0,92480.0,0.02710332]
[1765515989946,0.05994451,92481.0,92480.0,0.02810332]
[1765515990149,0.02240268,92484.0,92480.0,0.02810332]
[1765515990150,0.04459451,92482.0,92480.0,0.02810332]
[1765515990367,0.04459451,92482.0,92480.0,0.02910332]
[1765515990584,0.06871451,92482.0,92480.0,0.02910332]
[1765515990995,0.06871451,92482.0,92480.0,0.02810332]
[1765515991241,0.06871451,92482.0,92481.0,0.02891953]
[1765515991678,0.12439724,92482.0,92481.0,0.02891953]
[1765515992317,0.12439724,92482.0,92480.0,0.05702285]
[1765515992761,0.10027724,92482.0,92481.0,0.001]
[1765515992979,0.10027724,92482.0,92481.0,0.002]
[1765515993205,0.11562724,92482.0,92481.0,0.002]
[1765515993413,0.13974724,92482.0,92480.0,0.02710332]
[1765515993645,0.02412,92481.0,92480.0,0.02910332]
[1765515993889,0.0775456,92481.0,92480.0,0.02810332]
[1765515994102,0.0775456,92481.0,92480.0,0.02710332]
[1765515995801,0.0775456,92481.0,92480.0,0.02810332]
[1765515996230,0.0775456,92481.0,92480.0,0.02910332]
[1765515996893,0.04459451,92482.0,92480.0,0.02910332]
[1765515997067,0.02412,92482.0,92480.0,0.24536605]
[1765515997716,0.02412,92482.0,92480.0,0.24436605]
[1765515998521,0.02412,92482.0,92480.0,0.24336605]
[1765515998880,0.02412,92482.0,92480.0,0.24436605]
[1765515999286,0.02412,92482.0,92480.0,0.02810332]
[1765515999478,0.02412,92482.0,92480.0,0.02910332]
[1765516002736,0.02412,92482.0,92481.0,0.21626063]
[1765516003099,0.01159,92484.0,92481.0,0.22707366]
[1765516003299,0.01535,92482.0,92481.0,0.22707366]
[1765516003749,0.03947,92482.0,92481.0,0.22707366]
[1765516003946,0.03947,92482.0,92481.0,0.01281303]
[1765516004148,0.09892776,92482.0,92481.0,0.002]
[1765516005179,0.31518605,92482.0,92481.0,0.002]
[1765516005595,0.31518605,92482.0,92480.0,0.02710332]
[1765516005743,0.06650257,92481.0,92480.0,0.02710332]
[1765516006483,0.03947,92481.0,92480.0,0.02710332]
[1765516006642,0.10321343,92481.0,92480.0,0.02810332]
[1765516006845,0.10321343,92481.0,92480.0,0.02910332]
[1765516007030,0.10321343,92481.0,92480.0,0.02810332]
[1765516007235,0.10321343,92481.0,92480.0,0.02910332]
[1765516007669,0.03947,92481.0,92480.0,0.02910332]
[1765516015423,0.03947,92481.0,92480.0,0.05802285]
[1765516015989,0.08406451,92481.0,92480.0,0.05802285]
[1765516016422,0.08406451,92481.0,92480.0,0.02910332]
[1765516020552,0.03947,92481.0,92480.0,0.02910332]
[1765516021664,0.23161063,92481.0,92480.0,0.02910332]
[1765516021871,0.03984,92481.0,92480.0,0.02910332]
[1765516023030,0.09933619,92481.0,92480.0,0.02910332]
[1765516023399,0.09933619,92481.0,92480.0,0.06772811]
[1765516023601,0.09933619,92481.0,92480.0,0.02910332]
[1765516024863,0.07484619,92481.0,92480.0,0.02910332]
[1765516025341,0.1439307,92481.0,92480.0,0.06772811]
[1765516026414,0.17096327,92481.0,92480.0,0.06772811]
[1765516027049,0.10187876,92481.0,92480.0,0.06772811]
[1765516027271,0.10187876,92481.0,92480.0,0.02910332]
[1765516027496,0.10187876,92481.0,92480.0,0.06777407]
[1765516027725,0.07484619,92481.0,92480.0,0.06777407]
[1765516027947,0.07484619,92481.0,92480.0,0.02910332]
[1765516028159,0.01535,92481.0,92480.0,0.02910332]
[1765516029705,0.03984,92481.0,92480.0,0.06777544]
[1765516029913,0.11146708,92481.0,92480.0,0.02910332]
[1765516030455,0.06687257,92481.0,92480.0,0.02910332]
[1765516030670,0.14575895,92481.0,92480.0,0.00207994]
[1765516030898,0.11146708,92481.0,92480.0,0.00207994]
[1765516031129,0.11146708,92481.0,92480.0,0.0310889]
[1765516032258,0.11146708,92481.0,92480.0,0.00207994]
[1765516033102,0.14646397,92481.0,92480.0,0.00207994]
[1765516033949,0.14807684,92481.0,92480.0,0.00207994]
[1765516038706,0.06848544,92481.0,92480.0,0.00207994]
[1765516038911,0.04145287,92481.0,92480.0,0.00207994]
[1765516055070,0.05145376,92481.0,92480.0,0.00207994]
[1765516055629,0.07848633,92481.0,92480.0,0.00207994]
[1765516055843,0.06848544,92481.0,92480.0,0.00207994]
[1765516057893,0.04145287,92481.0,92480.0,0.00207994]
[1765516058497,0.08604738,92481.0,92480.0,0.00207994]
[1765516061559,0.01159,92484.0,92481.0,0.01081303]
[1765516061764,0.02240244,92486.0,92482.0,0.02900372]
[1765516062114,0.02240244,92486.0,92481.0,0.01081303]
[1765516062321,0.04459451,92485.0,92481.0,0.03981675]
[1765516062703,0.06770451,92485.0,92481.0,0.01181303]
[1765516063192,0.06770451,92485.0,92481.0,0.01081303]
[1765516063392,0.04459451,92485.0,92482.0,0.22706937]
[1765516063975,0.06770451,92485.0,92482.0,0.22706937]
[1765516064874,0.06770451,92485.0,92482.0,0.22806937]
[1765516065083,0.02240221,92488.0,92486.0,0.21624784]
[1765516065084,0.01159,92488.0,92486.0,0.21624784]
[1765516065280,0.01219,92500.0,92490.0,0.01081197]
[1765516065281,0.01081162,92493.0,92490.0,0.01081197]
[1765516065921,0.03470162,92493.0,92489.0,0.01081209]
[1765516066342,0.01081186,92491.0,92488.0,0.01081221]
[1765516066885,0.0642572,92490.0,92487.0,0.01081233]
[1765516067091,0.05344523,92490.0,92487.0,0.01081233]
[1765516067291,0.02955523,92490.0,92487.0,0.01081233]
[1765516067531,0.0403672,92490.0,92487.0,0.01081233]
[1765516068598,0.01081197,92490.0,92487.0,0.01081233]
[1765516069047,0.01081197,92490.0,92489.0,0.001]
[1765516069471,0.01081197,92490.0,92487.0,0.01081233]
[1765516069871,0.01081197,92490.0,92487.0,0.01181233]
[1765516071374,0.22705258,92490.0,92487.0,0.001]
[1765516073601,0.01081197,92490.0,92487.0,0.001]
[1765516073942,0.25204596,92490.0,92487.0,0.001]
[1765516074118,0.30554249,92490.0,92487.0,0.001]
[1765516074319,0.32943249,92490.0,92487.0,0.001]
[1765516077249,0.24439426,92488.0,92487.0,0.001]
[1765516077666,0.02815,92488.0,92487.0,0.001]
[1765516077786,0.24439426,92488.0,92487.0,0.001]
[1765516077986,0.03896221,92488.0,92485.0,0.01081256]
[1765516078317,0.13097344,92488.0,92487.0,0.001]
[1765516078535,0.03896221,92488.0,92487.0,0.001]
[1765516079061,0.07142652,92488.0,92485.0,0.01081256]
[1765516079360,0.07142652,92488.0,92485.0,0.01281256]
[1765516079571,0.03896221,92488.0,92485.0,0.01281256]
[1765516079726,0.03246431,92487.0,92485.0,0.01181256]
[1765516080670,0.03246431,92487.0,92485.0,0.01081256]
[1765516081369,0.03246431,92487.0,92483.0,0.03981651]
[1765516081571,0.25095138,92486.0,92485.0,0.001]
[1765516081739,0.29715876,92486.0,92485.0,0.001]
[1765516081950,0.31300876,92486.0,92485.0,0.001]
[1765516082155,0.34201248,92486.0,92485.0,0.001]
[1765516082350,0.21626063,92481.0,92474.0,0.01731029]
[1765516082563,0.24441063,92481.0,92474.0,0.01731029]
[1765516082756,0.26830063,92481.0,92474.0,0.02812414]
[1765516083014,0.30076965,92481.0,92474.0,0.02812414]
[1765516083164,0.30076965,92481.0,92475.0,0.01081373]
[1765516083363,0.30076965,92481.0,92476.0,0.01081361]
[1765516083805,0.30076965,92481.0,92475.0,0.01081373]
[1765516084723,0.30076965,92481.0,92480.0,0.00107994]
[1765516084927,0.41127727,92481.0,92480.0,0.00207994]
[1765516090453,0.19501664,92481.0,92480.0,0.00207994]
[1765516091903,0.17112664,92481.0,92480.0,0.00207994]
[1765516092235,0.19501664,92481.0,92480.0,0.00207994]
[1765516096937,0.41127727,92481.0,92480.0,0.00207994]
[1765516098482,0.34536416,92481.0,92480.0,0.00207994]
[1765516099250,0.30076965,92481.0,92480.0,0.00207994]
[1765516099574,0.34536416,92481.0,92480.0,0.00207994]
[1765516102658,0.03246902,92481.0,92480.0,0.00207994]
[1765516103011,0.03246902,92481.0,92480.0,0.03407332]
[1765516103397,0.01081209,92489.0,92480.0,0.03407332]
[1765516103398,0.02789174,92492.0,92483.0,0.01081279]
[1765516103595,0.01081186,92491.0,92488.0,0.01081221]
[1765516103807,0.03430197,92490.0,92486.0,0.01081244]
[1765516103981,0.02746,92486.0,92483.0,0.02896936]
[1765516104187,0.01596,92484.0,92483.0,0.02896936]
[1765516106018,0.01596,92484.0,92482.0,0.02896936]
[1765516106211,0.01596,92484.0,92483.0,0.001]
[1765516106581,0.01596,92484.0,92482.0,0.02896936]
[1765516106780,0.05371687,92484.0,92482.0,0.02896936]
[1765516106990,0.05371687,92484.0,92483.0,0.001]
[1765516107909,0.05371687,92484.0,92482.0,0.02896936]
[1765516108252,0.01596,92484.0,92483.0,0.02896936]
[1765516110344,0.01596,92484.0,92483.0,0.02996936]
[1765516112223,0.03945,92484.0,92483.0,0.02996936]
[1765516112437,0.03945,92484.0,92483.0,0.001]
[1765516112605,0.16600117,92484.0,92483.0,0.001]
[1765516113569,0.14251117,92484.0,92483.0,0.001]
[1765516113758,0.04459451,92484.0,92483.0,0.001]
[1765516113931,0.0397818,92486.0,92483.0,0.001]
[1765516113932,0.02896936,92486.0,92483.0,0.22806734]
[1765516114304,0.01081197,92490.0,92486.0,0.01081244]
[1765516114499,0.01081244,92486.0,92483.0,0.02996936]
[1765516114740,0.01081244,92486.0,92483.0,0.001]
[1765516114968,0.22706213,92486.0,92483.0,0.001]
[1765516115380,0.01081244,92486.0,92483.0,0.001]
[1765516115708,0.01081244,92486.0,92483.0,0.02896936]
[1765516115830,0.01081244,92486.0,92483.0,0.001]
[1765516116528,0.01081244,92486.0,92483.0,0.01181279]
[1765516116947,0.04327861,92487.0,92483.0,0.04078215]
[1765516117151,0.01081244,92486.0,92483.0,0.001]
[1765516117703,0.05477861,92487.0,92484.0,0.01081268]
[1765516117863,0.04396628,92487.0,92484.0,0.01081268]
[1765516118460,0.05477861,92487.0,92484.0,0.01081268]
[1765516118668,0.01081244,92486.0,92483.0,0.03978443]
[1765516119045,0.01081244,92486.0,92483.0,0.04078443]
[1765516119378,0.01081244,92486.0,92483.0,0.03978443]
[1765516119723,0.01081244,92486.0,92483.0,0.04078443]
[1765516120383,0.05477861,92487.0,92484.0,0.01081268]
[1765516120918,0.01081244,92486.0,92483.0,0.04078443]
[1765516121564,0.01081244,92486.0,92483.0,0.03978443]
[1765516121980,0.07826861,92487.0,92484.0,0.01081268]
[1765516122193,0.03246628,92487.0,92486.0,0.00497]
[1765516122410,0.22704438,92493.0,92488.0,0.01081221]
[1765516122631,0.03246431,92490.0,92489.0,0.01081209]
[1765516122843,0.03246431,92490.0,92489.0,0.01578209]
[1765516123046,0.01081244,92486.0,92483.0,0.02997164]
[1765516123244,0.03430244,92486.0,92485.0,0.02702338]
[1765516123542,0.21625128,92485.0,92483.0,0.02897164]
[1765516123753,0.02349,92484.0,92483.0,0.02897164]
[1765516123962,0.21625128,92485.0,92483.0,0.02897164]
[1765516124368,0.01081244,92486.0,92483.0,0.02897164]
[1765516125703,0.03430244,92486.0,92483.0,0.02897164]
[1765516125908,0.21625128,92485.0,92483.0,0.02997164]
[1765516126240,0.03430244,92486.0,92483.0,0.02997164]
[1765516126441,0.06133355,92486.0,92483.0,0.02997164]
[1765516127922,0.06133355,92486.0,92483.0,0.02897164]
[1765516128121,0.06133355,92486.0,92483.0,0.02997164]
[1765516128333,0.02457,92485.0,92483.0,0.02997164]
[1765516128506,0.24082148,92485.0,92483.0,0.02997164]
[1765516128720,0.02457,92485.0,92483.0,0.02897164]
[1765516128920,0.02457,92485.0,92483.0,0.02997164]
[1765516129324,0.24082188,92485.0,92484.0,0.02897164]
[1765516129530,0.02457,92485.0,92484.0,0.02897164]
[1765516129983,0.24082128,92485.0,92484.0,0.02897164]
[1765516130156,0.25605128,92485.0,92484.0,0.02897164]
[1765516130358,0.0398,92485.0,92484.0,0.02897164]
[1765516131315,0.0398,92485.0,92482.0,0.01081291]
[1765516132449,0.0398,92485.0,92482.0,0.01181291]
[1765516133164,0.05061256,92485.0,92482.0,0.01181291]
[1765516133735,0.26686395,92485.0,92482.0,0.001]
[1765516134145,0.05061256,92485.0,92482.0,0.001]
[1765516134351,0.21625362,92484.0,92482.0,0.001]
[1765516134547,0.10860603,92485.0,92482.0,0.001]
[1765516134901,0.10472603,92485.0,92482.0,0.001]
[1765516135519,0.10472603,92485.0,92481.0,0.07650853]
[1765516135699,0.08015603,92485.0,92482.0,0.001]
[1765516135898,0.02457,92484.0,92482.0,0.001]
[1765516136102,0.24082393,92484.0,92482.0,0.001]
[1765516136306,0.07117451,92483.0,92482.0,0.001]
[1765516136535,0.05115,92483.0,92482.0,0.001]
[1765516136728,0.09574451,92483.0,92482.0,0.03000427]
[1765516136902,0.21625829,92482.0,92480.0,7.994e-05]
[1765516137104,0.05982451,92481.0,92480.0,7.994e-05]
[1765516137307,0.08439451,92481.0,92480.0,7.994e-05]
[1765516138065,0.0398,92481.0,92480.0,7.994e-05]
[1765516138289,0.12886007,92481.0,92480.0,0.00107994]
[1765516138666,0.12886007,92481.0,92480.0,7.994e-05]
[1765516138919,0.12886007,92481.0,92480.0,0.00107994]
[1765516139301,0.0667573,92483.0,92480.0,0.01289308]
[1765516139535,0.01135,92483.0,92482.0,0.02702338]
[1765516139720,0.01081256,92485.0,92482.0,0.03783629]
[1765516139870,0.01081256,92485.0,92484.0,0.02900233]
[1765516140277,0.01081233,92487.0,92484.0,0.03397233]
[1765516140704,0.01242484,92490.0,92485.0,0.25606617]
[1765516140922,0.01242484,92490.0,92487.0,0.22705888]
[1765516141297,0.22866617,92490.0,92486.0,0.03981477]
[1765516141542,0.02658,92487.0,92486.0,0.02900233]
[1765516141751,0.02658,92487.0,92485.0,0.02900233]
[1765516141942,0.02457,92486.0,92485.0,0.02900233]
[1765516142160,0.02457,92486.0,92483.0,0.01081279]
[1765516142335,0.02457,92486.0,92483.0,0.22706857]
[1765516142540,0.01135,92487.0,92486.0,0.21624894]
[1765516142759,0.01135,92487.0,92486.0,0.24525106]
[1765516142952,0.01135,92487.0,92486.0,0.02900212]
[1765516143136,0.05115,92487.0,92486.0,0.02900212]
[1765516148792,0.04459451,92489.0,92486.0,0.03981456]
[1765516148993,0.03246646,92493.0,92490.0,0.01081197]
[1765516149309,0.03246646,92493.0,92492.0,0.24523703]
[1765516149472,4.001e-05,92497.0,92494.0,0.01081151]
[1765516149672,4.001e-05,92497.0,92494.0,0.03980966]
[1765516149873,4.001e-05,92497.0,92496.0,0.02899815]
[1765516150127,4.001e-05,92497.0,92495.0,0.02899815]
[1765516150587,4.001e-05,92497.0,92496.0,0.21622556]
[1765516150819,0.02843,92499.0,92496.0,0.01081127]
[1765516151135,0.053,92499.0,92497.0,0.21622322]
[1765516152087,0.053,92499.0,92494.0,0.25603981]
[1765516152088,0.01081116,92497.0,92494.0,0.02899815]
[1765516152382,0.21622556,92496.0,92492.0,0.03980989]
[1765516152624,0.01081139,92495.0,92492.0,0.01081174]
[1765516152807,0.21623628,92492.0,92490.0,0.02899815]
[1765516152954,0.25362911,92491.0,92488.0,0.02899815]
[1765516153153,0.21623959,92490.0,92488.0,0.02899815]
[1765516153366,0.01523,92489.0,92488.0,0.02899815]
[1765516153565,0.01135,92491.0,92488.0,0.01081221]
[1765516153796,0.01135,92491.0,92490.0,0.028974]
[1765516154552,0.01135,92493.0,92491.0,0.21623725]
[1765516154755,0.01135,92493.0,92491.0,0.24520849]
[1765516154963,0.01135,92493.0,92492.0,0.02897124]
[1765516155162,0.01135,92493.0,92491.0,0.24520849]
[1765516155686,0.01235,92493.0,92491.0,0.24820849]
[1765516156803,0.01235,92493.0,92492.0,0.02897124]
[1765516157656,0.06391379,92499.0,92496.0,0.01081127]
[1765516158067,0.02306,92498.0,92496.0,0.01081127]
[1765516158904,0.02306,92498.0,92496.0,0.01181127]
[1765516160042,0.0155,92497.0,92496.0,0.01081127]
[1765516160297,0.21622556,92496.0,92493.0,0.01081162]
[1765516160502,0.21622556,92496.0,92487.0,0.02897124]
[1765516160503,0.21623491,92492.0,92487.0,0.02897124]
[1765516160709,0.01196,92488.0,92487.0,0.02897124]
[1765516160913,0.04459451,92487.0,92486.0,0.02897124]
[1765516161122,0.06765451,92487.0,92486.0,0.02897124]
[1765516161607,0.12936869,92487.0,92486.0,0.02897124]
[1765516162068,0.06171418,92487.0,92486.0,0.02897124]
[1765516162294,0.08477418,92487.0,92486.0,0.02997124]
[1765516163009,0.07721418,92487.0,92486.0,0.02997124]
[1765516163175,0.07821418,92487.0,92486.0,0.03297124]
[1765516163603,0.0165,92487.0,92486.0,0.03298143]
[1765516163775,0.03956,92487.0,92486.0,0.03298143]
[1765516164227,0.0165,92487.0,92486.0,0.03298143]
[1765516168444,0.0165,92487.0,92486.0,0.004]
[1765516170441,0.0165,92487.0,92486.0,0.22024894]
[1765516170666,0.001,92487.0,92486.0,0.22024894]
[1765516177003,0.02462,92483.0,92475.0,0.02900459]
[1765516177183,0.02462,92483.0,92474.0,0.00023029]
[1765516177184,0.56699394,92475.0,92474.0,0.00023029]
[1765516177317,0.63402041,92475.0,92474.0,0.00023029]
[1765516177821,0.66649924,92475.0,92474.0,0.00023029]
[1765516179330,0.67649924,92475.0,92474.0,0.00123029]
[1765516179525,0.78700686,92475.0,92474.0,0.00123029]
[1765516179769,0.79400686,92475.0,92474.0,0.00223029]
[1765516185028,0.68349924,92475.0,92474.0,0.00223029]